fUSD/lending_fUSD_20260607
["ID","MTS","AMOUNT","RATE_DAILY","PERIOD"]
[424321788,1780768277000,-347.64006,0.0003345,9]
[424321789,1780768277000,-179.97120458,0.0003349,2]
[424321791,1780768277000,-303.26113,0.00033533,10]
[424321790,1780768277000,-1235.34268285,0.000335,2]
[424321792,1780768277000,-759.0,0.00033545,9]
[424321793,1780768277000,-14910.11,0.00033553,30]
[424321794,1780768277000,-1065.5548339,0.00033555,2]
[424321797,1780768277000,-152.0,0.00033652,9]
[424321801,1780768277000,-151.0,0.00033754,2]
[424321804,1780768277000,-151.0,0.00033754,2]
[424321771,1780768277000,-617.346821,0.00033395,7]
[424321784,1780768277000,-4288.0,0.00033397,30]
[424321767,1780768277000,-4263.549041,0.0003339,7]
[424321744,1780768277000,-333.170853,0.0003339,7]
[424321762,1780768277000,-199.145761,0.0003339,7]
[424321741,1780768277000,-333.170844,0.0003339,7]
[424321743,1780768277000,-926.031354,0.0003339,7]
[424321742,1780768277000,-333.170844,0.0003339,7]
[424321740,1780768277000,-333.170844,0.0003339,7]
[424321745,1780768277000,-926.031354,0.0003339,7]
[424321746,1780768277000,-926.031354,0.0003339,7]
[424321750,1780768277000,-2532.201305,0.0003339,7]
[424321747,1780768277000,-926.031357,0.0003339,7]
[424321749,1780768277000,-2532.201305,0.0003339,7]
[424321756,1780768277000,-1094.222631,0.0003339,7]
[424321748,1780768277000,-2532.201305,0.0003339,7]
[424321755,1780768277000,-342.548367,0.0003339,7]
[424321751,1780768277000,-2532.20131456,0.0003339,7]
[424321754,1780768277000,-342.548366,0.0003339,7]
[424321752,1780768277000,-342.548366,0.0003339,7]
[424321753,1780768277000,-342.548366,0.0003339,7]
[424321758,1780768277000,-199.145761,0.0003339,7]
[424321757,1780768277000,-1094.222631,0.0003339,7]
[424321769,1780768277000,-151.0,0.00033395,7]
[424321768,1780768277000,-164.0,0.00033393,11]
[424321770,1780768277000,-617.346821,0.00033395,7]
[424321763,1780768277000,-199.145758,0.0003339,7]
[424321765,1780768277000,-4263.549049,0.0003339,7]
[424321766,1780768277000,-4263.549049,0.0003339,7]
[424321759,1780768277000,-1094.222631,0.0003339,7]
[424321760,1780768277000,-199.145761,0.0003339,7]
[424321761,1780768277000,-1094.222631,0.0003339,7]
[424321764,1780768277000,-4263.549049,0.0003339,7]
[424321802,1780768277000,-151.0,0.00033754,2]
[424321856,1780768277000,-151.0,0.00033758,2]
[424321800,1780768277000,-151.0,0.00033754,2]
[424321843,1780768277000,-151.0,0.00033754,2]
[424321834,1780768277000,-151.0,0.00033754,2]
[424321836,1780768277000,-151.0,0.00033754,2]
[424321835,1780768277000,-151.0,0.00033754,2]
[424321840,1780768277000,-151.0,0.00033754,2]
[424321838,1780768277000,-151.0,0.00033754,2]
[424321841,1780768277000,-151.0,0.00033754,2]
[424321839,1780768277000,-151.0,0.00033754,2]
[424321837,1780768277000,-151.0,0.00033754,2]
[424321842,1780768277000,-151.0,0.00033754,2]
[424321845,1780768277000,-151.0,0.00033754,2]
[424321849,1780768277000,-151.0,0.00033758,2]
[424321850,1780768277000,-151.0,0.00033758,2]
[424321833,1780768277000,-151.0,0.00033754,2]
[424321848,1780768277000,-151.0,0.00033758,2]
[424321846,1780768277000,-151.0,0.00033758,2]
[424321854,1780768277000,-151.0,0.00033758,2]
[424321852,1780768277000,-151.0,0.00033758,2]
[424321853,1780768277000,-151.0,0.00033758,2]
[424321855,1780768277000,-151.0,0.00033758,2]
[424321857,1780768277000,-151.0,0.00033758,2]
[424321863,1780768277000,-151.0,0.00033758,2]
[424321862,1780768277000,-151.0,0.00033758,2]
[424321859,1780768277000,-151.0,0.00033758,2]
[424321860,1780768277000,-151.0,0.00033758,2]
[424321858,1780768277000,-151.0,0.00033758,2]
[424321861,1780768277000,-151.0,0.00033758,2]
[424321796,1780768277000,-500.0,0.00033597,2]
[424321851,1780768277000,-201.91,0.00033758,2]
[424321832,1780768277000,-151.0,0.00033754,2]
[424321847,1780768277000,-151.0,0.00033758,2]
[424321827,1780768277000,-151.0,0.00033754,2]
[424321798,1780768277000,-256.5,0.000337,10]
[424321844,1780768277000,-151.0,0.00033754,2]
[424321805,1780768277000,-151.0,0.00033754,2]
[424321803,1780768277000,-151.0,0.00033754,2]
[424321806,1780768277000,-151.26,0.00033754,2]
[424321818,1780768277000,-151.0,0.00033754,2]
[424321808,1780768277000,-151.0,0.00033754,2]
[424321819,1780768277000,-151.0,0.00033754,2]
[424321807,1780768277000,-151.0,0.00033754,2]
[424321813,1780768277000,-151.0,0.00033754,2]
[424321810,1780768277000,-151.0,0.00033754,2]
[424321809,1780768277000,-151.0,0.00033754,2]
[424321812,1780768277000,-151.0,0.00033754,2]
[424321815,1780768277000,-151.0,0.00033754,2]
[424321817,1780768277000,-151.0,0.00033754,2]
[424321824,1780768277000,-230.69,0.00033754,2]
[424321814,1780768277000,-151.0,0.00033754,2]
[424321816,1780768277000,-151.0,0.00033754,2]
[424321820,1780768277000,-151.0,0.00033754,2]
[424321823,1780768277000,-151.0,0.00033754,2]
[424321822,1780768277000,-151.0,0.00033754,2]
[424321821,1780768277000,-151.0,0.00033754,2]
[424321811,1780768277000,-151.0,0.00033754,2]
[424321831,1780768277000,-151.0,0.00033754,2]
[424321826,1780768277000,-151.0,0.00033754,2]
[424321828,1780768277000,-223.91,0.00033754,2]
[424321825,1780768277000,-151.0,0.00033754,2]
[424321829,1780768277000,-151.0,0.00033754,2]
[424321830,1780768277000,-151.0,0.00033754,2]
[424321907,1780768278000,-150.0,0.00033815,2]
[424321903,1780768278000,-718.32,0.00033815,7]
[424321910,1780768278000,-179.97120458,0.00033838,2]
[424321904,1780768278000,-150.0,0.00033815,2]
[424321908,1780768278000,-150.0,0.00033815,2]
[424321905,1780768278000,-150.0,0.00033815,2]
[424321897,1780768278000,-573.03,0.00033761,2]
[424321901,1780768278000,-201.800573,0.000338,10]
[424321896,1780768278000,-151.0,0.00033761,2]
[424321900,1780768278000,-200.0,0.000338,13]
[424321921,1780768278000,-220.64983343,0.000339,120]
[424321899,1780768278000,-305.57820441,0.000338,120]
[424321906,1780768278000,-150.0,0.00033815,2]
[424321920,1780768278000,-1098.93627381,0.000339,120]
[424321927,1780768278000,-219.86092195,0.000339,120]
[424321909,1780768278000,-500.0,0.00033838,14]
[424321912,1780768278000,-194.70598458,0.000339,120]
[424321916,1780768278000,-162.78507498,0.000339,120]
[424321911,1780768278000,-189.74650639,0.000339,120]
[424321915,1780768278000,-311.24645775,0.000339,120]
[424321918,1780768278000,-1093.4156204,0.000339,120]
[424321913,1780768278000,-192.987151,0.000339,120]
[424321917,1780768278000,-296.19721537,0.000339,120]
[424321919,1780768278000,-1200.1055665,0.000339,120]
[424321914,1780768278000,-225.18122371,0.000339,120]
[424321923,1780768278000,-1544.44983188,0.000339,120]
[424321925,1780768278000,-343.81844838,0.000339,120]
[424321928,1780768278000,-171.95833749,0.000339,120]
[424321902,1780768278000,-200.0,0.000338,8]
[424321922,1780768278000,-1183.73298945,0.000339,120]
[424321898,1780768278000,-2405.86,0.00033793,120]
[424321866,1780768278000,-151.0,0.00033758,2]
[424321891,1780768278000,-151.0,0.00033761,2]
[424321926,1780768278000,-946.47712584,0.000339,120]
[424321868,1780768278000,-151.0,0.00033761,2]
[424321869,1780768278000,-151.0,0.00033761,2]
[424321867,1780768278000,-151.0,0.00033761,2]
[424321864,1780768278000,-152.53,0.00033758,2]
[424321865,1780768278000,-151.0,0.00033758,2]
[424321870,1780768278000,-151.73,0.00033761,2]
[424321871,1780768278000,-151.0,0.00033761,2]
[424321872,1780768278000,-151.0,0.00033761,2]
[424321880,1780768278000,-151.0,0.00033761,2]
[424321875,1780768278000,-151.0,0.00033761,2]
[424321873,1780768278000,-151.0,0.00033761,2]
[424321874,1780768278000,-151.0,0.00033761,2]
[424321876,1780768278000,-151.0,0.00033761,2]
[424321895,1780768278000,-151.0,0.00033761,2]
[424321877,1780768278000,-151.0,0.00033761,2]
[424321878,1780768278000,-151.0,0.00033761,2]
[424321882,1780768278000,-151.0,0.00033761,2]
[424321892,1780768278000,-151.0,0.00033761,2]
[424321881,1780768278000,-151.0,0.00033761,2]
[424321894,1780768278000,-151.0,0.00033761,2]
[424321893,1780768278000,-151.0,0.00033761,2]
[424321883,1780768278000,-151.0,0.00033761,2]
[424321889,1780768278000,-192.73,0.00033761,2]
[424321884,1780768278000,-151.0,0.00033761,2]
[424321888,1780768278000,-151.0,0.00033761,2]
[424321887,1780768278000,-151.0,0.00033761,2]
[424321885,1780768278000,-151.41,0.00033761,2]
[424321890,1780768278000,-151.0,0.00033761,2]
[424321886,1780768278000,-151.0,0.00033761,2]
[424321879,1780768278000,-151.0,0.00033761,2]
[424321935,1780768278000,-151.0,0.0003391,2]
[424321994,1780768278000,-700.0,0.00034384,2]
[424321936,1780768278000,-151.0,0.0003391,2]
[424321966,1780768278000,-4581.8,0.00034182,7]
[424321977,1780768278000,-500.0,0.00034245,60]
[424321976,1780768278000,-500.0,0.00034245,60]
[424321965,1780768278000,-797.0,0.00034157,7]
[424321967,1780768278000,-164.68866912,0.00034186,2]
[424321972,1780768278000,-644.422417,0.000342,11]
[424321969,1780768278000,-194.000028,0.00034186,2]
[424321968,1780768278000,-179.97120457,0.00034186,2]
[424321971,1780768278000,-561.17978,0.000342,11]
[424321973,1780768278000,-181.910186,0.000342,11]
[424321974,1780768278000,-991.505684,0.000342,11]
[424321975,1780768278000,-158.45519398,0.00034208,7]
[424321970,1780768278000,-150.0,0.0003419,2]
[424321980,1780768278000,-332.76234158,0.00034247,30]
[424321963,1780768278000,-2322.0,0.00034138,11]
[424321978,1780768278000,-1100.0,0.00034245,60]
[424321981,1780768278000,-300.0,0.00034247,2]
[424321989,1780768278000,-700.0,0.00034384,2]
[424321986,1780768278000,-700.0,0.00034384,2]
[424321991,1780768278000,-700.0,0.00034384,2]
[424321984,1780768278000,-700.0,0.00034384,2]
[424321988,1780768278000,-700.0,0.00034384,2]
[424321982,1780768278000,-151.0,0.00034312,14]
[424321924,1780768278000,-182.87704749,0.000339,120]
[424321987,1780768278000,-700.0,0.00034384,2]
[424321979,1780768278000,-1000.0,0.00034247,120]
[424321985,1780768278000,-700.0,0.00034384,2]
[424321993,1780768278000,-700.0,0.00034384,2]
[424321995,1780768278000,-700.0,0.00034384,2]
[424321992,1780768278000,-700.0,0.00034384,2]
[424321983,1780768278000,-700.0,0.00034384,2]
[424321962,1780768278000,-151.0,0.00034095,7]
[424321990,1780768278000,-700.0,0.00034384,2]
[424321954,1780768278000,-2000.0,0.00034095,2]
[424321964,1780768278000,-2364.0,0.00034138,11]
[424321934,1780768278000,-298.0519616,0.000339,120]
[424321929,1780768278000,-281.74792979,0.000339,120]
[424321931,1780768278000,-460.23029315,0.000339,120]
[424321933,1780768278000,-237.0865582,0.000339,120]
[424321932,1780768278000,-298.0519616,0.000339,120]
[424321938,1780768278000,-274.279975,0.00034,120]
[424321937,1780768278000,-300.0,0.00034,30]
[424321948,1780768278000,-347.17950581,0.00034032,120]
[424321949,1780768278000,-39663.39852518,0.00034045,2]
[424321940,1780768278000,-5000.0,0.00034,2]
[424321939,1780768278000,-4658.84,0.00034,30]
[424321942,1780768278000,-5000.0,0.00034,2]
[424321941,1780768278000,-5000.0,0.00034,2]
[424321946,1780768278000,-1086.0,0.00034,7]
[424321930,1780768278000,-195.45704926,0.000339,120]
[424321943,1780768278000,-5000.0,0.00034,2]
[424321947,1780768278000,-444.93636062,0.00034027,2]
[424321955,1780768278000,-10000.0,0.00034095,2]
[424321961,1780768278000,-151.0,0.00034095,7]
[424321960,1780768278000,-151.0,0.00034095,7]
[424321951,1780768278000,-151.0,0.00034092,14]
[424321957,1780768278000,-1601938.50543369,0.00034095,2]
[424321956,1780768278000,-1589.004228,0.00034095,2]
[424321959,1780768278000,-151.0,0.00034095,7]
[424321952,1780768278000,-2000.0,0.00034095,2]
[424321953,1780768278000,-10000.0,0.00034095,2]
[424321950,1780768278000,-759.0,0.00034079,9]
[424321944,1780768278000,-10000.0,0.00034,2]
[424321958,1780768278000,-151.0,0.00034095,7]
[424321945,1780768278000,-750.0,0.00034,2]
[424322044,1780768279000,-1747.0,0.00034397,30]
[424322033,1780768279000,-1092.0,0.00034395,30]
[424322030,1780768279000,-700.0,0.00034384,2]
[424322031,1780768279000,-421.0,0.00034384,2]
[424322024,1780768279000,-700.0,0.00034384,2]
[424322028,1780768279000,-700.0,0.00034384,2]
[424322027,1780768279000,-700.0,0.00034384,2]
[424322020,1780768279000,-700.0,0.00034384,2]
[424322023,1780768279000,-700.0,0.00034384,2]
[424322029,1780768279000,-700.0,0.00034384,2]
[424322032,1780768279000,-468.0,0.00034395,30]
[424322034,1780768279000,-675.0,0.00034395,30]
[424322038,1780768279000,-585.0,0.00034397,30]
[424322039,1780768279000,-4082.0,0.00034397,30]
[424322045,1780768279000,-408.0,0.00034397,30]
[424322035,1780768279000,-2972.0,0.00034395,30]
[424322043,1780768279000,-801.0,0.00034397,30]
[424322042,1780768279000,-4288.0,0.00034397,30]
[424322040,1780768279000,-706.0,0.00034397,30]
[424322036,1780768279000,-4110.0,0.00034397,30]
[424322041,1780768279000,-800.0,0.00034397,30]
[424322049,1780768279000,-500.0,0.00034453,2]
[424322026,1780768279000,-700.0,0.00034384,2]
[424322037,1780768279000,-948.0,0.00034397,30]
[424322025,1780768279000,-700.0,0.00034384,2]
[424322007,1780768279000,-700.0,0.00034384,2]
[424322021,1780768279000,-700.0,0.00034384,2]
[424321996,1780768279000,-700.0,0.00034384,2]
[424321997,1780768279000,-700.0,0.00034384,2]
[424321998,1780768279000,-700.0,0.00034384,2]
[424322001,1780768279000,-700.0,0.00034384,2]
[424322002,1780768279000,-700.0,0.00034384,2]
[424322000,1780768279000,-700.0,0.00034384,2]
[424321999,1780768279000,-700.0,0.00034384,2]
[424322004,1780768279000,-700.0,0.00034384,2]
[424322003,1780768279000,-700.0,0.00034384,2]
[424322005,1780768279000,-700.0,0.00034384,2]
[424322017,1780768279000,-700.0,0.00034384,2]
[424322018,1780768279000,-700.0,0.00034384,2]
[424322006,1780768279000,-700.0,0.00034384,2]
[424322008,1780768279000,-700.0,0.00034384,2]
[424322011,1780768279000,-700.0,0.00034384,2]
[424322010,1780768279000,-700.0,0.00034384,2]
[424322009,1780768279000,-700.0,0.00034384,2]
[424322015,1780768279000,-700.0,0.00034384,2]
[424322016,1780768279000,-700.0,0.00034384,2]
[424322012,1780768279000,-700.0,0.00034384,2]
[424322014,1780768279000,-700.0,0.00034384,2]
[424322013,1780768279000,-700.0,0.00034384,2]
[424322019,1780768279000,-700.0,0.00034384,2]
[424322022,1780768279000,-700.0,0.00034384,2]
[424322046,1780768279000,-150.0,0.00034453,2]
[424322051,1780768279000,-500.0,0.00034453,2]
[424322050,1780768279000,-500.0,0.00034453,2]
[424322077,1780768279000,-151.0,0.00034576,2]
[424322084,1780768279000,-573.03,0.00034576,2]
[424322082,1780768279000,-151.0,0.00034576,2]
[424322073,1780768279000,-151.0,0.00034576,2]
[424322081,1780768279000,-573.03,0.00034576,2]
[424322083,1780768279000,-151.0,0.00034576,2]
[424322086,1780768279000,-575.26,0.00034576,2]
[424322091,1780768279000,-151.0,0.00034579,2]
[424322097,1780768279000,-151.0,0.00034579,2]
[424322096,1780768279000,-151.0,0.00034579,2]
[424322088,1780768279000,-184.99,0.00034576,2]
[424322087,1780768279000,-575.26,0.00034576,2]
[424322090,1780768279000,-643.95,0.00034576,2]
[424322092,1780768279000,-151.0,0.00034579,2]
[424322085,1780768279000,-578.07,0.00034576,2]
[424322093,1780768279000,-151.0,0.00034579,2]
[424322094,1780768279000,-151.0,0.00034579,2]
[424322095,1780768279000,-156.24,0.00034579,2]
[424322098,1780768279000,-151.0,0.00034579,2]
[424322101,1780768279000,-151.0,0.00034579,2]
[424322100,1780768279000,-151.0,0.00034579,2]
[424322099,1780768279000,-151.0,0.00034579,2]
[424322048,1780768279000,-150.0,0.00034453,2]
[424322080,1780768279000,-185.04,0.00034576,2]
[424322078,1780768279000,-151.0,0.00034576,2]
[424322089,1780768279000,-573.03,0.00034576,2]
[424322079,1780768279000,-151.0,0.00034576,2]
[424322054,1780768279000,-400.0,0.00034453,2]
[424322076,1780768279000,-573.03,0.00034576,2]
[424322056,1780768279000,-407.0,0.00034453,2]
[424322053,1780768279000,-400.0,0.00034453,2]
[424322047,1780768279000,-150.0,0.00034453,2]
[424322055,1780768279000,-407.0,0.00034453,2]
[424322057,1780768279000,-407.0,0.00034453,2]
[424322058,1780768279000,-150.0,0.00034453,2]
[424322060,1780768279000,-164.0,0.00034458,11]
[424322068,1780768279000,-150.0,0.0003455,2]
[424322070,1780768279000,-150.0,0.0003455,2]
[424322071,1780768279000,-2322.0,0.00034567,11]
[424322052,1780768279000,-400.0,0.00034453,2]
[424322059,1780768279000,-150.33702773,0.00034453,2]
[424322075,1780768279000,-185.04,0.00034576,2]
[424322072,1780768279000,-249.0,0.00034576,15]
[424322062,1780768279000,-20856.44810492,0.000345,30]
[424322074,1780768279000,-151.0,0.00034576,2]
[424322065,1780768279000,-28736.2,0.00034544,60]
[424322067,1780768279000,-150.0,0.0003455,2]
[424322064,1780768279000,-196.93,0.00034521,120]
[424322063,1780768279000,-156.47576002,0.000345,120]
[424322061,1780768279000,-433.0,0.0003449,10]
[424322069,1780768279000,-150.0,0.0003455,2]
[424322066,1780768279000,-1600.69,0.00034544,60]
[424322140,1780768280000,-377.0,0.00034707,2]
[424322141,1780768280000,-377.0,0.00034714,2]
[424322142,1780768280000,-377.0,0.00034714,2]
[424322138,1780768280000,-200.0,0.000347,10]
[424322136,1780768280000,-188.60945692,0.00034686,2]
[424322137,1780768280000,-377.0,0.00034696,2]
[424322148,1780768280000,-151.0,0.00034732,2]
[424322147,1780768280000,-151.0,0.00034732,2]
[424322130,1780768280000,-377.0,0.00034654,2]
[424322131,1780768280000,-708.59,0.00034655,7]
[424322143,1780768280000,-377.0,0.00034714,2]
[424322139,1780768280000,-791.9,0.00034703,5]
[424322145,1780768280000,-151.0,0.00034732,2]
[424322161,1780768280000,-151.0,0.00034738,2]
[424322144,1780768280000,-377.0,0.0003473,2]
[424322151,1780768280000,-151.0,0.00034732,2]
[424322149,1780768280000,-151.0,0.00034732,2]
[424322155,1780768280000,-151.0,0.00034732,2]
[424322153,1780768280000,-151.0,0.00034732,2]
[424322152,1780768280000,-151.0,0.00034732,2]
[424322160,1780768280000,-150.0,0.00034737,2]
[424322150,1780768280000,-151.0,0.00034732,2]
[424322154,1780768280000,-151.0,0.00034732,2]
[424322157,1780768280000,-151.0,0.00034732,2]
[424322159,1780768280000,-150.0,0.00034737,2]
[424322156,1780768280000,-151.0,0.00034732,2]
[424322133,1780768280000,-377.0,0.0003466,2]
[424322146,1780768280000,-151.0,0.00034732,2]
[424322129,1780768280000,-377.0,0.00034637,2]
[424322104,1780768280000,-151.0,0.00034579,2]
[424322135,1780768280000,-377.0,0.00034678,2]
[424322109,1780768280000,-151.0,0.00034582,2]
[424322105,1780768280000,-151.0,0.00034579,2]
[424322110,1780768280000,-151.0,0.00034582,2]
[424322108,1780768280000,-151.0,0.00034582,2]
[424322102,1780768280000,-151.0,0.00034579,2]
[424322107,1780768280000,-151.0,0.00034582,2]
[424322103,1780768280000,-151.0,0.00034579,2]
[424322106,1780768280000,-151.0,0.00034582,2]
[424322112,1780768280000,-151.0,0.00034582,2]
[424322111,1780768280000,-482.15,0.00034582,2]
[424322122,1780768280000,-2322.0,0.00034591,11]
[424322120,1780768280000,-573.09,0.00034582,2]
[424322121,1780768280000,-185.04,0.00034582,2]
[424322132,1780768280000,-377.0,0.00034657,2]
[424322113,1780768280000,-396.06,0.00034582,2]
[424322158,1780768280000,-150.0,0.00034737,2]
[424322117,1780768280000,-185.04,0.00034582,2]
[424322115,1780768280000,-575.26,0.00034582,2]
[424322119,1780768280000,-151.0,0.00034582,2]
[424322116,1780768280000,-151.0,0.00034582,2]
[424322118,1780768280000,-643.95,0.00034582,2]
[424322123,1780768280000,-759.0,0.00034613,10]
[424322124,1780768280000,-377.0,0.00034622,2]
[424322126,1780768280000,-377.0,0.00034633,2]
[424322127,1780768280000,-377.0,0.00034636,2]
[424322125,1780768280000,-377.0,0.00034629,2]
[424322134,1780768280000,-1000.0,0.00034669,30]
[424322128,1780768280000,-377.0,0.00034636,2]
[424322114,1780768280000,-575.26,0.00034582,2]
[424322163,1780768280000,-377.0,0.00034744,2]
[424322204,1780768280000,-1343.44679808,0.00034766,2]
[424322173,1780768280000,-300.0,0.00034766,2]
[424322195,1780768280000,-377.30039377,0.00034766,2]
[424322198,1780768280000,-866.7779036,0.00034766,2]
[424322201,1780768280000,-300.0,0.00034766,2]
[424322209,1780768280000,-582.46305007,0.00034766,2]
[424322202,1780768280000,-310.46403505,0.00034766,2]
[424322200,1780768280000,-1802.22521058,0.00034766,2]
[424322205,1780768280000,-595.62173546,0.00034766,2]
[424322203,1780768280000,-300.0,0.00034766,2]
[424322210,1780768280000,-453.15702828,0.00034766,2]
[424322207,1780768280000,-512.68985396,0.00034766,2]
[424322206,1780768280000,-300.0,0.00034766,2]
[424322199,1780768280000,-951.63328238,0.00034766,2]
[424322208,1780768280000,-457.38733013,0.00034766,2]
[424322196,1780768280000,-300.0,0.00034766,2]
[424322212,1780768280000,-300.0,0.00034766,2]
[424322211,1780768280000,-300.0,0.00034766,2]
[424322222,1780768280000,-300.0,0.00034766,2]
[424322216,1780768280000,-444.97656654,0.00034766,2]
[424322219,1780768280000,-300.0,0.00034766,2]
[424322213,1780768280000,-300.0,0.00034766,2]
[424322221,1780768280000,-1097.93775232,0.00034766,2]
[424322215,1780768280000,-300.0,0.00034766,2]
[424322214,1780768280000,-300.0,0.00034766,2]
[424322220,1780768280000,-300.0,0.00034766,2]
[424322217,1780768280000,-300.0,0.00034766,2]
[424322218,1780768280000,-300.0,0.00034766,2]
[424322224,1780768280000,-300.0,0.00034766,2]
[424322225,1780768280000,-300.00000001,0.00034766,2]
[424322223,1780768280000,-300.0,0.00034766,2]
[424322189,1780768280000,-300.0,0.00034766,2]
[424322165,1780768280000,-1000.0,0.0003475,30]
[424322190,1780768280000,-300.0,0.00034766,2]
[424322162,1780768280000,-377.0,0.00034739,2]
[424322164,1780768280000,-377.0,0.00034745,2]
[424322169,1780768280000,-5000.0,0.00034759,30]
[424322166,1780768280000,-719.04747942,0.00034755,2]
[424322171,1780768280000,-506.81487987,0.00034766,2]
[424322167,1780768280000,-902.28551577,0.00034755,2]
[424322168,1780768280000,-377.0,0.00034756,2]
[424322172,1780768280000,-300.0,0.00034766,2]
[424322174,1780768280000,-300.0,0.00034766,2]
[424322176,1780768280000,-494.04522563,0.00034766,2]
[424322177,1780768280000,-300.0,0.00034766,2]
[424322179,1780768280000,-300.0,0.00034766,2]
[424322180,1780768280000,-606.12545596,0.00034766,2]
[424322170,1780768280000,-503.87924622,0.00034766,2]
[424322178,1780768280000,-300.0,0.00034766,2]
[424322175,1780768280000,-477.38970543,0.00034766,2]
[424322194,1780768280000,-528.34886838,0.00034766,2]
[424322193,1780768280000,-344.90343841,0.00034766,2]
[424322186,1780768280000,-302.62874208,0.00034766,2]
[424322188,1780768280000,-301.40479208,0.00034766,2]
[424322197,1780768280000,-300.0,0.00034766,2]
[424322192,1780768280000,-391.39385918,0.00034766,2]
[424322191,1780768280000,-300.0,0.00034766,2]
[424322182,1780768280000,-300.0,0.00034766,2]
[424322184,1780768280000,-728.07781908,0.00034766,2]
[424322183,1780768280000,-535.48528261,0.00034766,2]
[424322181,1780768280000,-300.0,0.00034766,2]
[424322185,1780768280000,-300.0,0.00034766,2]
[424322187,1780768280000,-300.41626562,0.00034766,2]
[424322266,1780768281000,-300.0,0.00034766,2]
[424322272,1780768281000,-300.0,0.00034766,2]
[424322262,1780768281000,-300.0,0.00034766,2]
[424322268,1780768281000,-300.0,0.00034766,2]
[424322264,1780768281000,-300.0,0.00034766,2]
[424322267,1780768281000,-582.46305007,0.00034766,2]
[424322274,1780768281000,-300.0,0.00034766,2]
[424322273,1780768281000,-300.0,0.00034766,2]
[424322256,1780768281000,-310.46403505,0.00034766,2]
[424322258,1780768281000,-300.0,0.00034766,2]
[424322253,1780768281000,-1802.22521058,0.00034766,2]
[424322265,1780768281000,-512.68985396,0.00034766,2]
[424322263,1780768281000,-595.62173546,0.00034766,2]
[424322285,1780768281000,-300.0,0.00034766,2]
[424322271,1780768281000,-300.0,0.00034766,2]
[424322275,1780768281000,-444.97656654,0.00034766,2]
[424322277,1780768281000,-300.0,0.00034766,2]
[424322278,1780768281000,-577.62134561,0.00034766,2]
[424322276,1780768281000,-300.0,0.00034766,2]
[424322280,1780768281000,-300.0,0.00034766,2]
[424322282,1780768281000,-300.0,0.00034766,2]
[424322279,1780768281000,-300.0,0.00034766,2]
[424322281,1780768281000,-1097.93775232,0.00034766,2]
[424322284,1780768281000,-300.0,0.00034766,2]
[424322286,1780768281000,-300.0,0.00034766,2]
[424322283,1780768281000,-300.0,0.00034766,2]
[424322252,1780768281000,-951.63328238,0.00034766,2]
[424322269,1780768281000,-453.15702828,0.00034766,2]
[424322254,1780768281000,-300.0,0.00034766,2]
[424322248,1780768281000,-528.34886838,0.00034766,2]
[424322251,1780768281000,-866.7779036,0.00034766,2]